Cogmind - Beta 13 @@@ ROGUE MODE // 2024.04.03 @ 18:24:02 Player: Monica Result: Self-destructed Performance ------------- Evolutions (1) 500 Regions Visited (3) 600 Robots Destroyed (18) 90 Value Destroyed (527) 527 Prototype IDs (0) 0 Alien Tech Used (0) 0 Bonus (0) 0 TOTAL SCORE: 1717 Bonus ------- None Cogmind --------- Core Integrity 237/400 Matter 71/300 Energy 100/100 System Corruption 0% Temperature Cool (0) Movement Core (800) Ox15 Location -9/Storage Parts ------- > --- POWER (1) -------- (None) > --- PROPULSION (2) --- (None) > --- UTILITY (4) ------ Small Storage Unit High-capacity Storage Unit Signal Interpreter Core Shielding > --- WEAPON (2) ------- Small Laser Small Laser > --- INVENTORY (20) --- Light Assault Rifle Heavy Assault Rifle Light Cannon Light Cannon Peak State ------------ > --- POWER ------------ Light Nuclear Core > --- PROPULSION ------- Aluminum Leg Aluminum Leg > --- UTILITY ---------- Cooling System Small Storage Unit Medium Matter Pod Signal Interpreter > --- WEAPON ----------- Light Assault Rifle Heavy Assault Rifle > --- INVENTORY -------- EM Pulse Gun Small Laser Small Laser Beam Rifle Light Cannon Light Cannon Grenade Launcher [Rating: 13] Favorites ----------- Power Light Nuclear Core Engine Light Ion Engine Power Core Light Nuclear Core Propulsion Aluminum Leg Leg Aluminum Leg Utility Small Storage Unit Device Cooling System Storage Small Storage Unit Processor Signal Interpreter Protection Core Shielding Weapon Light Assault Rifle Energy Gun EM Pulse Gun Ballistic Gun Light Assault Rifle Ballistic Cannon Light Cannon Launcher Rocket Launcher Build | -11 -10 -9 -9 ------- Run | Yrd Mat Mat Sto Slots Evolved 2 | . . 2 . Power . | . . . . Propulsion . | . . . . Utility 2 | . . 2 . Weapon . | . . . . Parts Attached 27 | 6 7 7 7 Power 2 | 1 1 . . Engine 1 | 1 . . . Core 1 | . 1 . . Reactor . | . . . . Propulsion 2 | 2 . . . Treads . | . . . . Leg 2 | 2 . . . Wheel . | . . . . Hover . | . . . . Flight . | . . . . Utility 8 | 1 1 5 1 Device 1 | . . 1 . Storage 3 | 1 1 . 1 Processor 1 | . . 1 . Hackware . | . . . . Protection 3 | . . 3 . Artifact . | . . . . Weapon 15 | 2 5 2 6 Energy Gun 5 | 1 2 . 2 Energy Cannon . | . . . . Ballistic Gun 4 | 1 . 2 1 Ballistic Cannon 2 | . 2 . . Launcher 4 | . 1 . 3 Special Weapon . | . . . . Impact Weapon . | . . . . Slashing Weapon . | . . . . Piercing Weapon . | . . . . Special Melee Weapon . | . . . . Unidentified Prototypes . | . . . . Parts Lost 5 | . . . 5 Power 1 | . . . 1 Propulsion 2 | . . . 2 Utility . | . . . . Weapon 2 | . . . 2 Highest Loss Streak 5 | . . . 5 To Critical Strikes . | . . . . Average Slot Usage (%) 92 | . 90 98 88 Engine 1 | . 4 . . Core 9 | . 9 11 8 Leg 23 | . 28 22 16 Device 2 | . . 7 . Storage 18 | . 19 21 14 Processor 6 | . . 11 11 Protection 5 | . . 2 18 Energy Gun 6 | . 12 . 1 Ballistic Gun 7 | . 4 6 13 Ballistic Cannon 9 | . 11 15 . Launcher 1 | . . . 4 Naked Turns . | . . . . Heaviest Build 59 | 11 18 20 59 Greatest Support 20 | 20 20 20 20 Greatest Overweight (x) 16 | . . . 16 Average Overweight (x) . | . . . . Largest Inventory Capacity 20 | 8 8 8 20 Average Capacity 8 | 7 8 8 12 Most Carried 8 | 5 7 7 8 Average Carried 4 | 2 4 5 5 Final Capacity 20 | 8 8 8 20 Final Carried 6 | 2 6 6 4 Class Distribution -------------------- 100% | Mutant Dominant Class ---------------- Mutant | -10/Materials Mutant | -9/Materials Mutant | -9/Storage Resources | -11 -10 -9 -9 ----------- Run | Yrd Mat Mat Sto Matter Collected 447 | 228 73 80 66 Remotely . | . . . . Salvage Created 520 | . 141 69 310 Parts 40 | . 10 7 23 Haulers Intercepted . | . . . . Recyclers Shooed . | . . . . Parts Field Recycled . | . . . . Retrieved Matter . | . . . . Parts Self-Destructed . | . . . . Prevented . | . . . . Kills | -11 -10 -9 -9 ------- Run | Yrd Mat Mat Sto Combat Hostiles Destroyed 14 | . 5 2 7 Guns 4 | . 1 . 3 Cannons 5 | . 3 2 . AOE 5 | . 1 . 4 Classes Destroyed 7 | . 3 1 3 Builder 2 | . . . 2 Recycler 1 | . . . 1 Watcher 1 | . 1 . . Swarmer 3 | . 3 . . Grunt 7 | . 2 . 5 Brawler 1 | . . . 1 Sentry 3 | . . 2 1 Best Kill Streak 4 | . 3 1 4 Combat Bots Only 4 | . 3 1 4 Max Kills in Single Turn 3 | . 1 1 3 Gunslinging . | . . . . Exploded 2 | . 1 . 2 Melee . | . . . . Uniques/NPCs Destroyed . | . . . . Combat | -11 -10 -9 -9 -------- Run | Yrd Mat Mat Sto Hostile Shots Fired 80 | . 14 14 52 Missed 22 | . 4 4 14 Damage Taken 867 | . 111 143 613 Core 203 | . 40 16 147 Absorbed by Shields . | . . . . Redirected to Shielding 27 | . . . 27 Core Remaining (%) 92 | 100 84 . . Volleys Fired 31 | . 9 9 13 Largest 2 | . 2 2 2 Hottest 80 | . 70 70 80 Shots Fired 60 | . 18 18 24 Gun 23 | . 5 . 18 Cannon 30 | . 12 18 . Launcher 7 | . 1 . 6 Special . | . . . . Kinetic 49 | . 15 18 16 Thermal 4 | . 2 . 2 Explosive 7 | . 1 . 6 Electromagnetic . | . . . . Robot Hit Streak 4 | . 4 3 4 Robot Miss Streak 3 | . 3 3 3 Penetration Max . | . . . . Secondary Targets . | . . . . Shots Hit Robots 28 | . 7 9 12 Core Hits 31 | . 8 4 19 Critical Kills . | . . . . Critical Parts Destroyed . | . . . . Critical Strikes . | . . . . Melee Attacks . | . . . . Impact . | . . . . Slashing . | . . . . Piercing . | . . . . Sneak Attacks . | . . . . Combat Hostiles . | . . . . Follow-up Attacks . | . . . . Damage Inflicted 915 | . 195 160 560 Guns 153 | . 31 . 122 Cannons 246 | . 86 160 . Explosions 516 | . 78 . 438 Melee . | . . . . Ramming . | . . . . Kinetic 353 | . 94 160 99 Thermal 46 | . 23 . 23 Explosive 516 | . 78 . 438 Electromagnetic . | . . . . Impact . | . . . . Slashing . | . . . . Piercing . | . . . . Highest Corruption . | . . . . Average Corruption . | . . . . Corruption Purged . | . . . . Corruption Blocked . | . . . . Overload Shots . | . . . . Overflow Damage 19 | . . . 19 Projectiles . | . . . . Explosions 19 | . . . 19 Melee . | . . . . Knockbacks . | . . . . Impact . | . . . . Kinetic . | . . . . Secondary . | . . . . Self-Inflicted Damage 134 | . . . 134 Shots 5 | . . . 5 Rammed . | . . . . Targets Rammed . | . . . . Kicked . | . . . . Crushed . | . . . . Highest Temperature 60 | . 60 7 24 Average Temperature 19 | . 25 7 10 Received Heat Transfer 273 | . 36 63 174 Siege Activations . | . . . . Robots Corrupted . | . . . . Combat Hostiles . | . . . . Parts Fried . | . . . . Impact Corruptions . | . . . . Robots Melted . | . . . . Combat Hostiles . | . . . . Parts Melted . | . . . . Heat Transferred 100 | . 50 . 50 Parts Sabotaged . | . . . . Parts Stolen . | . . . . Parts Stripped . | . . . . Power Chain Reactions . | . . . . Alert | -11 -10 -9 -9 ------- Run | Yrd Mat Mat Sto Peak Influence 269 | . 179 165 269 Initial 75 | . . 75 69 Average 80 | . 81 121 172 Maximum Alert Level 1 | . . . 1 Low Security (%) 96 | 100 100 100 76 Level 1 3 | . . . 23 Level 2 . | . . . . Level 3 . | . . . . Level 4 . | . . . . Level 5 . | . . . . High Security . | . . . . Max Security . | . . . . Squads Dispatched 1 | . . . 1 Investigation . | . . . . Extermination . | . . . . Reinforcement . | . . . . Assault . | . . . . Garrison 1 | . . . 1 Intercept . | . . . . Searches Triggered . | . . . . Construction Impeded . | . . . . Haulers Reinforced . | . . . . Active Scanning Responses . | . . . . Cargo Convoy Interrupts . | . . . . Stealth | -11 -10 -9 -9 --------- Run | Yrd Mat Mat Sto Distress Signals . | . . . . Communications Jammed . | . . . . Distress Signals . | . . . . Times Spotted 20 | . 7 3 10 Peak Tracking Total 4 | . 2 3 4 Tactical Retreats . | . . . . Traps | -11 -10 -9 -9 ------- Run | Yrd Mat Mat Sto Traps Triggered 1 | . . 1 . Indirectly . | . . . . Trap Hack Attempts . | . . . . Triggered . | . . . . Disarmed . | . . . . Reprogrammed . | . . . . Reused . | . . . . Traps Extracted . | . . . . Installed . | . . . . Triggered . | . . . . Machines | -11 -10 -9 -9 ---------- Run | Yrd Mat Mat Sto Machines Disabled 3 | . 1 . 2 Max in Single Turn 1 | . 1 . 1 Machines Repaired . | . . . . Machines Dismantled . | . . . . Machines Sabotaged . | . . . . Overloaded Fab Kills . | . . . . Hacking | -11 -10 -9 -9 --------- Run | Yrd Mat Mat Sto Machines Accessed . | . . . . Terminals . | . . . . Fabricators . | . . . . Repair Stations . | . . . . Recycling Units . | . . . . Scanalyzers . | . . . . Garrison Access . | . . . . Total Hacks . | . . . . Successful . | . . . . Failed . | . . . . Catastrophic . | . . . . Database Lockouts . | . . . . Manual . | . . . . Terminals . | . . . . Fabricators . | . . . . Repair Stations . | . . . . Recycling Units . | . . . . Scanalyzers . | . . . . Garrison Access . | . . . . Terminal Hacks . | . . . . Fabricator Hacks . | . . . . Repair Station Hacks . | . . . . Recycling Unit Hacks . | . . . . Scanalyzer . | . . . . Garrison Access Hacks . | . . . . Unauthorized Hacks . | . . . . Terminals . | . . . . Fabricators . | . . . . Repair Stations . | . . . . Recycling Units . | . . . . Scanalyzers . | . . . . Garrison Access . | . . . . Data Cores Recovered . | . . . . Used . | . . . . Hacking Detections . | . . . . Full Trace Events . | . . . . Feedback Events . | . . . . Feedback Blocked . | . . . . Robot Schematics Acquired . | . . . . Robots Built . | . . . . Authchips . | . . . . Time . | . . . . Total Robot Build Rating . | . . . . Part Schematics Acquired . | . . . . Parts Built . | . . . . Authchips . | . . . . Time . | . . . . Total Part Build Rating . | . . . . Parts Repaired . | . . . . Time . | . . . . Parts Recycled . | . . . . Recycled Matter . | . . . . Retrieved Matter . | . . . . Retrieved Components . | . . . . Parts Scanalyzed . | . . . . Part Schematics Acquired . | . . . . Parts Damaged . | . . . . Bothacking | -11 -10 -9 -9 ------------ Run | Yrd Mat Mat Sto Used RIF Installer . | . . . . Robots Hacked . | . . . . Non-combat . | . . . . Combat . | . . . . Robot Hacks Applied . | . . . . Relay Couplers Released . | . . . . Fabnet Peak Effective % . | . . . . Robots Rewired . | . . . . Allies Hacked . | . . . . Hacks Repelled . | . . . . Allies | -11 -10 -9 -9 -------- Run | Yrd Mat Mat Sto Total Allies . | . . . . Largest Group . | . . . . Highest-Rated Group . | . . . . Highest-Rated Ally . | . . . . Total Orders . | . . . . Ally Attacks . | . . . . Total Damage . | . . . . Kills . | . . . . Allies Corrupted . | . . . . Allies Melted . | . . . . Intel | -11 -10 -9 -9 ------- Run | Yrd Mat Mat Sto Robot Analysis Total . | . . . . Derelict Logs Recovered . | . . . . Drone Launches . | . . . . Drone Recoveries . | . . . . Exploration | -11 -10 -9 -9 ------------- Run | Yrd Mat Mat Sto Turns Passed 943 | 283 297 206 157 Spaces Moved 500 | 87 211 136 66 Core 15 | 12 . . 3 Treads . | . . . . Legs 485 | 75 211 136 63 Wheels . | . . . . Hover . | . . . . Flight . | . . . . Fastest Speed 50 | 50 120 120 120 Average Speed 124 | 110 120 120 163 Slowest Speed 850 | 120 120 120 850 Overloaded Moves . | . . . . Propulsion Burnouts . | . . . . Robots Hopped . | . . . . Cave-ins Triggered . | . . . . Exploration Rate (%) 17 | 5 36 11 17 Regions Visited 3 Branch Regions 1 Pre-discovered Areas . | . . . . Known Exits Taken 1 | . . 1 . Unknown Exits Taken 2 | 1 1 . . Scrap Searched . | . . . . Spaces Dug . | . . . . Terrain Destroyed 41 | . 6 . 35 Melee . | . . . . Projectile . | . . . . AOE 41 | . 6 . 35 Terrain Rammed . | . . . . Walls Destroyed . | . . . . Machines Disabled . | . . . . Actions | -11 -10 -9 -9 --------- Run | Yrd Mat Mat Sto Total 761 | 274 235 160 92 Wait 174 | 174 . . . Move 497 | 86 210 135 66 Hop . | . . . . Pick Up 24 | 8 7 6 3 Fast Attach . | . . . . Attach 12 | 6 1 3 2 Detach . | . . . . Swap 15 | . 6 4 5 Drop 8 | . 2 3 3 Fire 31 | . 9 9 13 Melee . | . . . . Ram . | . . . . Kick . | . . . . Crush . | . . . . Escape Stasis . | . . . . Rewire . | . . . . Trap . | . . . . Miscellaneous . | . . . . Route ------- -11/Scrapyard -10/Materials (discovered 3 exits: *Mat x2 / [*Min]) -9/Materials -9/Storage History --------- Turn | Location | Event 25 | -11/Scrapyard | Discovered new exit (range 15) 284 | -11/Scrapyard | Entered Materials 304 | -10/Materials | Build established: Mutant 458 | -10/Materials | Discovered new exit (range 16) 461 | -10/Materials | Discovered new exit (range 13) 572 | -10/Materials | Discovered new exit (range 7) 581 | -10/Materials | Entered another Materials area 581 | -9/Materials | Evolved 2 slots: Utility x2 761 | -9/Materials | Discovered new exit (range 7) 768 | -9/Materials | Identified exit to Storage 787 | -9/Materials | Entered Storage 933 | -9/Storage | Garrison activated, responded to threat 944 | -9/Storage | Self-destructed Last Messages --------------- U-05 Engineer builds a Wall. R-06 Scavenger collects Hammer. R-06 Scavenger destroyed. Rocket Launcher destroyed. Destroyed Rocket Launcher. U-05 Engineer destroyed. K-01 Serf collects debris. Y-45 Defender calls for garrison reinforcements. ALERT: Activating Garrison Access S001. [Achievement: Troublemaker] Y-45 Defender destroyed. K-01 Serf collects debris. R-06 Scavenger collects Wheel. U-05 Engineer builds a Wall. R-06 Scavenger collects Wheel. K-01 Serf collects debris. U-05 Engineer lays Concrete. U-05 Engineer builds a Wall. R-06 Scavenger collects Lgt. Ion Engine. U-05 Engineer lays Concrete. Map ----- +----------------------------------------------------+ | ?????????????????????????????????????????????????? | | ?????????????????????????????????????????????????? | | ?????????????????????????????????????????????????? | | ?????????????????????????????????????????????????? | | ?????????????????????????????????????????????????? | | ?????????????????????????????????????????????????? | | ?????????????????????????????????????????????????? | | ?????????????????????????????????????????????????? | | ?????????????????????????????????????????????????? | | ?????????????????????????????????????????????????? | | ?????????????????????????????????????????????????? | | ?????????????????????????????????????????????????? | | ?????????????????????????????????????????????????? | | ?????????????????????????????????????????????????? | | ?????????????????????????????????????????????????? | | ?????????????????????????????????????????????????? | | ?????????????????????????????????????????????????? | | ?????????????????????????????????????????????????? | | ??????????????????????????????????????##?????????? | | ?????????????????????????????????????# ###???????? | | ????????????????????????????????????? [ #???????? | | ??????????????????????#######??????? #???????? | | ??????????????????##### ####???? #???????? | | ??????????????????# #???? !!!#???????? | | ??????????????????# #???? !!!#???????? | | ??????????????????# ! @ #???? !! ????????? | | ??????????????????# !%!/ #???? ?????????? | | ??????????????+ s ==%* uk#???? ??????????? | | ????????????" # % ########+############# | | ??????????????# !r % | | ????????????? s | | ???????????? # | | ??????????????##+#### ##### % ########+##? | | ???????????????????? ## ###### ^""" #??????????? | | ??????????????????? ?##????## %* #??????????? | | ??????????????????? ???????## #??????????? | | ??????????????????" ???????# #??????????? | | ??????????????????""????????## #??????????? | | ?????????????????????????????# " #??????????? | | ?????????????????????????????# " ########???? | | ?????????????????????????????# " #???? | | ?????????????????????????????# #???? | | ?????????????????????????????# #???? | | ?????????????????????????????# ####+######???? | | ?????????????????????????????#######?????????????? | | ?????????????????????????????????????????????????? | | ?????????????????????????????????????????????????? | | ?????????????????????????????????????????????????? | | ?????????????????????????????????????????????????? | | ?????????????????????????????????????????????????? | +----------------------------------------------------+ Best States ------------- Heat Dissipation 50 Energy Generation 14 Energy Capacity 160 Matter Stores 268 Matter Capacity 400 Sight Range 16 Terrain Scan Density 10 Armor Coverage 150 Core Shielding 20 Evasion (%) 55 Item Schematics ----------------- None Robot Schematics ------------------ None Fabricated ------------ Nothing Alien Tech Used ----------------- None Achievements -------------- Troublemaker Challenges ------------ None Game ------ Seed CentriumImprovedLoader Manual? 0 Play Time 00:10:37 Cumulative 1.3 hours Start 2024.04.03 @ 18:15:32 End 2024.04.03 @ 18:24:02 Sessions 1 Manual Loads 0 Difficulty Rogue Special Mode None Game No. 4 Rogue 3 Adventurer 1 Explorer 0 Win Type - Total 0 Types 0/0/0/0/0/0/0/0/0 Lore% 0 Gallery% 4 Achievement% 5 Wizard Run 0 Options --------- Layout 1 ASCII 0 Keyboard 0 Movement Arrows Keybinds 0 Fullscreen 1 Font 32/SmallcapsGlow Map View 50x35 Zoom Use 0% Tactical HUD 0 Map Filters NONE Filters NONE Steam 1 RUN: 0694c497-17c0-4fa2-8880-0913547d9b80